[Event "Titled Tuesday Blitz July 4 Late 2023"]
[White "He, Anthony"]
[Black "Jovic, Stanoje"]
[WhiteFideId "2088215"]
[BlackFideId "905020"]
[WhiteElo "2966"]
[BlackElo "2559"]
[Result "1/2-1/2"]
[Round "4"]
[TimeControl "180+2"]
[Date "2023.07.04"]
[WhiteClock "0:00:39"]
[BlackClock "0:00:09"]
[Board "30"]

1. d4 {[%clk 0:03:00]}  Nf6 {[%clk 0:02:59]} 2. Nc3 {[%clk 0:03:00]}  d5 {[%clk 0:02:59]} 3. Bf4 {[%clk 0:03:01]}  e6 {[%clk 0:02:58]} 4. Nb5 {[%clk 0:02:59]}  Bd6 {[%clk 0:02:59]} 5. Nxd6+ {[%clk 0:02:57]}  cxd6 {[%clk 0:02:59]} 6. c3 {[%clk 0:02:58]}  O-O {[%clk 0:02:58]} 7. e3 {[%clk 0:02:58]}  Nc6 {[%clk 0:02:57]} 8. Nf3 {[%clk 0:02:59]}  Re8 {[%clk 0:02:57]} 9. Be2 {[%clk 0:02:58]}  e5 {[%clk 0:02:56]} 10. Bg5 {[%clk 0:02:59]}  h6 {[%clk 0:02:54]} 11. Bh4 {[%clk 0:02:59]}  Bg4 {[%clk 0:02:54]} 12. O-O {[%clk 0:02:59]}  e4 {[%clk 0:02:53]} 13. Nd2 {[%clk 0:02:59]}  Bxe2 {[%clk 0:02:53]} 14. Qxe2 {[%clk 0:03:00]}  a6 {[%clk 0:02:47]} 15. a4 {[%clk 0:02:48]}  Rc8 {[%clk 0:02:45]} 16. b4 {[%clk 0:02:45]}  g5 {[%clk 0:02:41]} 17. Bg3 {[%clk 0:02:45]}  Ne7 {[%clk 0:02:40]} 18. c4 {[%clk 0:02:46]}  Nf5 {[%clk 0:02:37]} 19. c5 {[%clk 0:02:43]}  a5 {[%clk 0:02:28]} 20. cxd6 {[%clk 0:02:34]}  axb4 {[%clk 0:02:21]} 21. Qb5 {[%clk 0:02:34]}  Nxd6 {[%clk 0:02:04]} 22. Qxb4 {[%clk 0:02:33]}  Nc4 {[%clk 0:01:54]} 23. Nb3 {[%clk 0:02:31]}  b6 {[%clk 0:01:51]} 24. h3 {[%clk 0:02:26]}  h5 {[%clk 0:01:45]} 25. Rfb1 {[%clk 0:02:22]}  h4 {[%clk 0:01:44]} 26. Be5 {[%clk 0:02:19]}  g4 {[%clk 0:01:35]} 27. hxg4 {[%clk 0:02:15]}  Nxg4 {[%clk 0:01:33]} 28. Bf4 {[%clk 0:02:16]}  Re6 {[%clk 0:01:23]} 29. Nd2 {[%clk 0:02:13]}  Rg6 {[%clk 0:01:08]} 30. Kf1 {[%clk 0:02:05]}  Qd7 {[%clk 0:01:01]} 31. Nxc4 {[%clk 0:02:02]}  Rxc4 {[%clk 0:00:56]} 32. Qb5 {[%clk 0:02:02]}  Qf5 {[%clk 0:00:53]} 33. a5 {[%clk 0:01:55]}  Rc2 {[%clk 0:00:48]} 34. Rb2 {[%clk 0:01:55]}  Rxb2 {[%clk 0:00:43]} 35. Qxb2 {[%clk 0:01:56]}  bxa5 {[%clk 0:00:40]} 36. Rxa5 {[%clk 0:01:57]}  h3 {[%clk 0:00:39]} 37. gxh3 {[%clk 0:01:47]}  Nh2+ {[%clk 0:00:34]} 38. Ke2 {[%clk 0:01:47]}  Qxh3 {[%clk 0:00:33]} 39. Qb8+ {[%clk 0:01:46]}  Kh7 {[%clk 0:00:32]} 40. Bxh2 {[%clk 0:01:46]}  Qf3+ {[%clk 0:00:29]} 41. Ke1 {[%clk 0:01:45]}  Qh1+ {[%clk 0:00:26]} 42. Kd2 {[%clk 0:01:45]}  Qf1 {[%clk 0:00:21]} 43. Qb2 {[%clk 0:00:49]}  Qxf2+ {[%clk 0:00:18]} 44. Kc3 {[%clk 0:00:49]}  Qxb2+ {[%clk 0:00:17]} 45. Kxb2 {[%clk 0:00:49]}  Rg2+ {[%clk 0:00:17]} 46. Kc3 {[%clk 0:00:48]}  Rxh2 {[%clk 0:00:17]} 47. Rxd5 {[%clk 0:00:41]}  Re2 {[%clk 0:00:17]} 48. Rh5+ {[%clk 0:00:42]}  Kg6 {[%clk 0:00:17]} 49. Rh3 {[%clk 0:00:43]}  f5 {[%clk 0:00:16]} 50. d5 {[%clk 0:00:43]}  Re1 {[%clk 0:00:15]} 51. Kd4 {[%clk 0:00:43]}  Kg5 {[%clk 0:00:13]} 52. Ke5 {[%clk 0:00:42]}  Kg4 {[%clk 0:00:12]} 53. Rh8 {[%clk 0:00:42]}  Rxe3 {[%clk 0:00:12]} 54. Rg8+ {[%clk 0:00:43]}  Kf3 {[%clk 0:00:12]} 55. Kxf5 {[%clk 0:00:41]}  Rd3 {[%clk 0:00:12]} 56. Rf8 {[%clk 0:00:41]}  e3 {[%clk 0:00:11]} 57. Ke5+ {[%clk 0:00:41]}  Ke2 {[%clk 0:00:10]} 58. d6 {[%clk 0:00:41]}  Kd2 {[%clk 0:00:10]} 59. Ra8 {[%clk 0:00:36]}  e2 {[%clk 0:00:09]} 60. Ra2+ {[%clk 0:00:37]}  Ke3 {[%clk 0:00:09]} 61. Rxe2+ {[%clk 0:00:35]}  Kxe2 {[%clk 0:00:10]} 62. Ke6 {[%clk 0:00:36]}  Ke3 {[%clk 0:00:10]} 63. d7 {[%clk 0:00:37]}  Ke4 {[%clk 0:00:09]} 64. Ke7 {[%clk 0:00:37]}  Ke5 {[%clk 0:00:09]} 65. d8=Q {[%clk 0:00:38]}  Rxd8 {[%clk 0:00:09]} 66. Kxd8 {[%clk 0:00:39]} 1/2-1/2


[Site "https://www.chess.com"]

[Event "Titled Tuesday Blitz July 4 Late 2023"]
[White "Przybylski, Wojciech"]
[Black "Makarian, Rudik"]
[WhiteFideId "1117599"]
[BlackFideId "44105681"]
[WhiteElo "2559"]
[BlackElo "2948"]
[Result "0-1"]
[Round "4"]
[TimeControl "180+2"]
[Date "2023.07.04"]
[WhiteClock "0:00:05"]
[BlackClock "0:00:15"]
[Board "31"]

1. e4 {[%clk 0:03:00]}  c5 {[%clk 0:02:59]} 2. Nf3 {[%clk 0:03:00]}  Nc6 {[%clk 0:03:00]} 3. Bb5 {[%clk 0:02:59]}  e6 {[%clk 0:03:00]} 4. O-O {[%clk 0:02:58]}  Nd4 {[%clk 0:03:00]} 5. Bd3 {[%clk 0:02:54]}  Nxf3+ {[%clk 0:03:00]} 6. Qxf3 {[%clk 0:02:54]}  Ne7 {[%clk 0:03:01]} 7. Qg3 {[%clk 0:02:53]}  Nc6 {[%clk 0:03:02]} 8. c3 {[%clk 0:02:52]}  h5 {[%clk 0:02:55]} 9. f4 {[%clk 0:02:51]}  h4 {[%clk 0:02:54]} 10. Qh3 {[%clk 0:02:50]}  Be7 {[%clk 0:02:54]} 11. Bc2 {[%clk 0:02:47]}  c4 {[%clk 0:02:51]} 12. d4 {[%clk 0:02:43]}  cxd3 {[%clk 0:02:52]} 13. Bxd3 {[%clk 0:02:41]}  b6 {[%clk 0:02:47]} 14. Nd2 {[%clk 0:02:38]}  Bb7 {[%clk 0:02:47]} 15. Nf3 {[%clk 0:02:30]}  Qc7 {[%clk 0:02:44]} 16. Be3 {[%clk 0:02:26]}  Na5 {[%clk 0:02:38]} 17. Rae1 {[%clk 0:02:20]}  Nc4 {[%clk 0:02:38]} 18. Bc1 {[%clk 0:02:19]}  O-O-O {[%clk 0:02:34]} 19. b3 {[%clk 0:02:11]}  Na5 {[%clk 0:02:28]} 20. b4 {[%clk 0:01:49]}  Nc6 {[%clk 0:02:23]} 21. Be3 {[%clk 0:01:43]}  Kb8 {[%clk 0:02:17]} 22. a4 {[%clk 0:01:42]}  d5 {[%clk 0:02:14]} 23. e5 {[%clk 0:01:41]}  d4 {[%clk 0:02:09]} 24. Nxd4 {[%clk 0:01:37]}  Nxd4 {[%clk 0:02:10]} 25. Bxd4 {[%clk 0:01:36]}  Bxb4 {[%clk 0:02:09]} 26. Be4 {[%clk 0:01:21]}  Rxd4 {[%clk 0:01:49]} 27. cxd4 {[%clk 0:01:10]}  Bxe1 {[%clk 0:01:50]} 28. Bxb7 {[%clk 0:00:52]}  Qxb7 {[%clk 0:01:47]} 29. Rxe1 {[%clk 0:00:51]}  Qd5 {[%clk 0:01:48]} 30. Rd1 {[%clk 0:00:44]}  Qc4 {[%clk 0:01:38]} 31. Qa3 {[%clk 0:00:36]}  h3 {[%clk 0:01:27]} 32. gxh3 {[%clk 0:00:36]}  Rd8 {[%clk 0:01:04]} 33. a5 {[%clk 0:00:33]}  Rxd4 {[%clk 0:00:45]} 34. Rc1 {[%clk 0:00:31]}  Qb4 {[%clk 0:00:45]} 35. Qxb4 {[%clk 0:00:09]}  Rxb4 {[%clk 0:00:45]} 36. axb6 {[%clk 0:00:09]}  axb6 {[%clk 0:00:44]} 37. Rd1 {[%clk 0:00:08]}  Rxf4 {[%clk 0:00:42]} 38. Rd7 {[%clk 0:00:07]}  g6 {[%clk 0:00:39]} 39. Kg2 {[%clk 0:00:07]}  b5 {[%clk 0:00:37]} 40. Kg3 {[%clk 0:00:07]}  Rf5 {[%clk 0:00:37]} 41. h4 {[%clk 0:00:06]}  Rxe5 {[%clk 0:00:22]} 42. Rxf7 {[%clk 0:00:06]}  b4 {[%clk 0:00:23]} 43. Rf3 {[%clk 0:00:04]}  Rb5 {[%clk 0:00:21]} 44. Rb3 {[%clk 0:00:03]}  Kc7 {[%clk 0:00:22]} 45. Kg4 {[%clk 0:00:03]}  Kb6 {[%clk 0:00:21]} 46. Kf4 {[%clk 0:00:03]}  Ka5 {[%clk 0:00:22]} 47. Ke4 {[%clk 0:00:04]}  Ka4 {[%clk 0:00:22]} 48. Rb1 {[%clk 0:00:04]}  b3 {[%clk 0:00:23]} 49. Kd3 {[%clk 0:00:04]}  b2 {[%clk 0:00:17]} 50. Kc2 {[%clk 0:00:04]}  Ka3 {[%clk 0:00:15]} 51. h5 {[%clk 0:00:03]}  Rc5+ {[%clk 0:00:14]} 52. Kd3 {[%clk 0:00:02]}  gxh5 {[%clk 0:00:11]} 53. Kd4 {[%clk 0:00:02]}  Rc1 {[%clk 0:00:10]} 54. Rxb2 {[%clk 0:00:02]}  Kxb2 {[%clk 0:00:09]} 55. Ke5 {[%clk 0:00:03]}  Re1+ {[%clk 0:00:09]} 56. Kf4 {[%clk 0:00:03]}  Kc3 {[%clk 0:00:09]} 57. h4 {[%clk 0:00:03]}  Kd2 {[%clk 0:00:10]} 58. Kg5 {[%clk 0:00:04]}  e5 {[%clk 0:00:11]} 59. Kxh5 {[%clk 0:00:04]}  e4 {[%clk 0:00:12]} 60. Kg4 {[%clk 0:00:04]}  e3 {[%clk 0:00:13]} 61. h5 {[%clk 0:00:05]}  e2 {[%clk 0:00:13]} 62. h6 {[%clk 0:00:06]}  Rg1+ {[%clk 0:00:14]} 63. Kh5 {[%clk 0:00:05]}  e1=Q {[%clk 0:00:15]} 64. h7 {[%clk 0:00:05]}  Qe5+ {[%clk 0:00:14]} 65. Kh4 {[%clk 0:00:05]}  Qh2# {[%clk 0:00:15]} 0-1


[Site "https://www.chess.com"]

[Event "Titled Tuesday Blitz July 4 Late 2023"]
[White "Siniauski, Artsiom"]
[Black "Svane, Rasmus"]
[WhiteFideId "13512269"]
[BlackFideId "4657101"]
[WhiteElo "2558"]
[BlackElo "2935"]
[Result "0-1"]
[Round "4"]
[TimeControl "180+2"]
[Date "2023.07.04"]
[WhiteClock "0:00:03"]
[BlackClock "0:00:35"]
[Board "32"]

1. e4 {[%clk 0:02:55]}  c6 {[%clk 0:02:59]} 2. d4 {[%clk 0:02:54]}  d5 {[%clk 0:03:00]} 3. e5 {[%clk 0:02:54]}  Bf5 {[%clk 0:02:59]} 4. h4 {[%clk 0:02:55]}  h5 {[%clk 0:02:59]} 5. c4 {[%clk 0:02:56]}  e6 {[%clk 0:02:59]} 6. Nc3 {[%clk 0:02:56]}  Ne7 {[%clk 0:02:59]} 7. Nge2 {[%clk 0:02:53]}  Nd7 {[%clk 0:02:59]} 8. Ng3 {[%clk 0:02:51]}  Bg6 {[%clk 0:02:59]} 9. Bg5 {[%clk 0:02:51]}  Qb6 {[%clk 0:02:59]} 10. Rc1 {[%clk 0:02:43]}  Qxb2 {[%clk 0:02:59]} 11. Bd3 {[%clk 0:02:43]}  dxc4 {[%clk 0:02:59]} 12. Bxc4 {[%clk 0:02:35]}  Nb6 {[%clk 0:02:59]} 13. Bb3 {[%clk 0:02:31]}  Ned5 {[%clk 0:02:44]} 14. Nxd5 {[%clk 0:02:31]}  Nxd5 {[%clk 0:02:43]} 15. O-O {[%clk 0:02:23]}  Qa3 {[%clk 0:02:01]} 16. Bxd5 {[%clk 0:02:05]}  exd5 {[%clk 0:01:58]} 17. Kh2 {[%clk 0:02:05]}  Be7 {[%clk 0:01:57]} 18. Qd2 {[%clk 0:01:55]}  Bxg5 {[%clk 0:01:43]} 19. Qxg5 {[%clk 0:01:54]}  Qe7 {[%clk 0:01:43]} 20. Qxe7+ {[%clk 0:01:38]}  Kxe7 {[%clk 0:01:44]} 21. f4 {[%clk 0:01:38]}  Bd3 {[%clk 0:01:43]} 22. Rf3 {[%clk 0:01:38]}  Bc4 {[%clk 0:01:43]} 23. a3 {[%clk 0:01:35]}  b5 {[%clk 0:01:38]} 24. Nf5+ {[%clk 0:01:31]}  Kf8 {[%clk 0:01:38]} 25. Nd6 {[%clk 0:01:31]}  Ke7 {[%clk 0:01:33]} 26. f5 {[%clk 0:01:29]}  f6 {[%clk 0:01:30]} 27. Rg3 {[%clk 0:01:18]}  Rhg8 {[%clk 0:01:17]} 28. Nb7 {[%clk 0:01:18]}  g6 {[%clk 0:01:12]} 29. fxg6 {[%clk 0:01:08]}  fxe5 {[%clk 0:01:12]} 30. dxe5 {[%clk 0:01:07]}  Rg7 {[%clk 0:01:13]} 31. Nd6 {[%clk 0:00:40]}  Ke6 {[%clk 0:01:12]} 32. Rg5 {[%clk 0:00:39]}  Rag8 {[%clk 0:01:11]} 33. Nf5 {[%clk 0:00:25]}  Rxg6 {[%clk 0:01:09]} 34. Nd4+ {[%clk 0:00:24]}  Kd7 {[%clk 0:01:08]} 35. Rxg6 {[%clk 0:00:20]}  Rxg6 {[%clk 0:01:09]} 36. Rc3 {[%clk 0:00:19]}  c5 {[%clk 0:01:07]} 37. Nf5 {[%clk 0:00:19]}  d4 {[%clk 0:01:07]} 38. Rf3 {[%clk 0:00:19]}  Ke6 {[%clk 0:01:01]} 39. Ng3 {[%clk 0:00:18]}  Kxe5 {[%clk 0:00:59]} 40. Rf5+ {[%clk 0:00:18]}  Kd6 {[%clk 0:00:59]} 41. Nxh5 {[%clk 0:00:19]}  d3 {[%clk 0:00:54]} 42. Rf2 {[%clk 0:00:19]}  Rg4 {[%clk 0:00:46]} 43. g3 {[%clk 0:00:16]}  Rd4 {[%clk 0:00:44]} 44. Rd2 {[%clk 0:00:16]}  Bf7 {[%clk 0:00:44]} 45. Nf4 {[%clk 0:00:16]}  c4 {[%clk 0:00:45]} 46. h5 {[%clk 0:00:14]}  Bg8 {[%clk 0:00:45]} 47. Ne2 {[%clk 0:00:07]}  dxe2 {[%clk 0:00:39]} 48. Rxd4+ {[%clk 0:00:03]}  Bd5 {[%clk 0:00:35]} 0-1


[Site "https://www.chess.com"]

[Event "Titled Tuesday Blitz July 4 Late 2023"]
[White "Eljanov, Pavel"]
[Black "Sousa, Andre Ventura"]
[WhiteFideId "14102951"]
[BlackFideId "1917617"]
[WhiteElo "2920"]
[BlackElo "2556"]
[Result "0-1"]
[Round "4"]
[TimeControl "180+2"]
[Date "2023.07.04"]
[WhiteClock "0:00:00"]
[BlackClock "0:00:17"]
[Board "33"]

1. d4 {[%clk 0:02:52]}  Nf6 {[%clk 0:03:00]} 2. Nf3 {[%clk 0:02:50]}  e6 {[%clk 0:03:00]} 3. Bf4 {[%clk 0:02:50]}  c5 {[%clk 0:02:59]} 4. e3 {[%clk 0:02:50]}  Nc6 {[%clk 0:02:57]} 5. Nbd2 {[%clk 0:02:49]}  h6 {[%clk 0:02:55]} 6. h3 {[%clk 0:02:45]}  d5 {[%clk 0:02:54]} 7. c3 {[%clk 0:02:45]}  Bd6 {[%clk 0:02:54]} 8. Ne5 {[%clk 0:02:35]}  Qc7 {[%clk 0:02:47]} 9. Ndf3 {[%clk 0:02:35]}  Nd7 {[%clk 0:02:45]} 10. Nd3 {[%clk 0:02:21]}  Bxf4 {[%clk 0:02:36]} 11. Nxf4 {[%clk 0:02:15]}  cxd4 {[%clk 0:02:29]} 12. cxd4 {[%clk 0:02:15]}  O-O {[%clk 0:02:24]} 13. Bd3 {[%clk 0:02:11]}  e5 {[%clk 0:02:19]} 14. Nxd5 {[%clk 0:02:04]}  Qa5+ {[%clk 0:02:19]} 15. Nc3 {[%clk 0:02:05]}  exd4 {[%clk 0:02:19]} 16. exd4 {[%clk 0:01:46]}  Re8+ {[%clk 0:02:13]} 17. Be2 {[%clk 0:01:47]}  Qb4 {[%clk 0:02:09]} 18. Qd2 {[%clk 0:01:23]}  Nf6 {[%clk 0:01:53]} 19. O-O {[%clk 0:01:20]}  Bf5 {[%clk 0:01:40]} 20. a3 {[%clk 0:01:10]}  Qb3 {[%clk 0:01:33]} 21. d5 {[%clk 0:00:43]}  Rad8 {[%clk 0:01:27]} 22. Rad1 {[%clk 0:00:41]}  Ne4 {[%clk 0:01:07]} 23. Nxe4 {[%clk 0:00:41]}  Bxe4 {[%clk 0:01:08]} 24. d6 {[%clk 0:00:35]}  Re6 {[%clk 0:00:58]} 25. Qf4 {[%clk 0:00:31]}  Bxf3 {[%clk 0:00:37]} 26. Bxf3 {[%clk 0:00:30]}  Qxb2 {[%clk 0:00:37]} 27. Rfe1 {[%clk 0:00:22]}  Rdxd6 {[%clk 0:00:28]} 28. Rxe6 {[%clk 0:00:10]}  Rxd1+ {[%clk 0:00:23]} 29. Bxd1 {[%clk 0:00:10]}  fxe6 {[%clk 0:00:24]} 30. Bg4 {[%clk 0:00:05]}  Qa1+ {[%clk 0:00:15]} 31. Kh2 {[%clk 0:00:05]}  Qf6 {[%clk 0:00:15]} 32. Qxf6 {[%clk 0:00:04]}  gxf6 {[%clk 0:00:15]} 33. Bxe6+ {[%clk 0:00:04]}  Kf8 {[%clk 0:00:16]} 34. Kg3 {[%clk 0:00:04]}  Ke7 {[%clk 0:00:16]} 35. Bd5 {[%clk 0:00:04]}  Kd6 {[%clk 0:00:17]} 36. Be4 {[%clk 0:00:00]}  Ke5 {[%clk 0:00:17]} 0-1


[Site "https://www.chess.com"]

[Event "Titled Tuesday Blitz July 4 Late 2023"]
[White "Plat, Vojtech"]
[Black "Tomb, Maroun"]
[WhiteFideId "325740"]
[BlackFideId "5300398"]
[WhiteElo "2751"]
[BlackElo "2546"]
[Result "1-0"]
[Round "4"]
[TimeControl "180+2"]
[Date "2023.07.04"]
[WhiteClock "0:01:49"]
[BlackClock "0:00:16"]
[Board "41"]

1. e4 {[%clk 0:03:00]}  d6 {[%clk 0:02:58]} 2. Nf3 {[%clk 0:03:00]}  Nf6 {[%clk 0:02:59]} 3. Nc3 {[%clk 0:02:59]}  e5 {[%clk 0:02:58]} 4. d4 {[%clk 0:02:58]}  Nbd7 {[%clk 0:02:54]} 5. Bc4 {[%clk 0:02:57]}  Be7 {[%clk 0:02:51]} 6. O-O {[%clk 0:02:57]}  c6 {[%clk 0:02:42]} 7. a4 {[%clk 0:02:55]}  Qc7 {[%clk 0:02:41]} 8. a5 {[%clk 0:02:55]}  h6 {[%clk 0:02:38]} 9. Re1 {[%clk 0:02:54]}  Nf8 {[%clk 0:02:34]} 10. d5 {[%clk 0:02:50]}  Ng6 {[%clk 0:02:32]} 11. Bb3 {[%clk 0:02:45]}  O-O {[%clk 0:02:30]} 12. a6 {[%clk 0:02:44]}  c5 {[%clk 0:02:23]} 13. axb7 {[%clk 0:02:41]}  Qxb7 {[%clk 0:02:21]} 14. Ba4 {[%clk 0:02:39]}  Bd7 {[%clk 0:02:19]} 15. Bxd7 {[%clk 0:02:39]}  Nxd7 {[%clk 0:02:16]} 16. Nd2 {[%clk 0:02:39]}  f5 {[%clk 0:02:14]} 17. exf5 {[%clk 0:02:37]}  Rxf5 {[%clk 0:02:13]} 18. Qg4 {[%clk 0:02:30]}  Nh4 {[%clk 0:02:11]} 19. Nde4 {[%clk 0:02:24]}  h5 {[%clk 0:02:06]} 20. Qh3 {[%clk 0:02:23]}  Raf8 {[%clk 0:01:56]} 21. Be3 {[%clk 0:02:22]}  g5 {[%clk 0:01:50]} 22. Nxg5 {[%clk 0:02:03]}  Rxg5 {[%clk 0:01:51]} 23. Bxg5 {[%clk 0:02:02]}  Bxg5 {[%clk 0:01:50]} 24. Ne4 {[%clk 0:02:02]}  Be7 {[%clk 0:01:42]} 25. Ra3 {[%clk 0:01:55]}  Nf5 {[%clk 0:01:34]} 26. Qxh5 {[%clk 0:01:53]}  Qxb2 {[%clk 0:01:24]} 27. Rh3 {[%clk 0:01:51]}  Ng7 {[%clk 0:00:29]} 28. Qh7+ {[%clk 0:01:50]}  Kf7 {[%clk 0:00:25]} 29. Rg3 {[%clk 0:01:51]}  Rg8 {[%clk 0:00:23]} 30. Qg6+ {[%clk 0:01:50]}  Kf8 {[%clk 0:00:19]} 31. Rf3+ {[%clk 0:01:50]}  Bf6 {[%clk 0:00:20]} 32. Nxf6 {[%clk 0:01:50]}  Nxf6 {[%clk 0:00:16]} 33. Qxf6+ {[%clk 0:01:49]} 1-0


[Site "https://www.chess.com"]

[Event "Titled Tuesday Blitz July 4 Late 2023"]
[White "Rottenwohrer Suarez, Juan"]
[Black "Wieczorek, Oskar"]
[WhiteFideId "32068182"]
[BlackFideId "1133950"]
[WhiteElo "2535"]
[BlackElo "2720"]
[Result "0-1"]
[Round "4"]
[TimeControl "180+2"]
[Date "2023.07.04"]
[WhiteClock "0:00:00"]
[BlackClock "0:00:07"]
[Board "43"]

1. Nf3 {[%clk 0:03:00]}  Nf6 {[%clk 0:02:57]} 2. g3 {[%clk 0:03:01]}  b6 {[%clk 0:02:57]} 3. Bg2 {[%clk 0:03:01]}  Bb7 {[%clk 0:02:58]} 4. O-O {[%clk 0:03:02]}  e6 {[%clk 0:02:59]} 5. b3 {[%clk 0:03:02]}  Be7 {[%clk 0:02:59]} 6. Bb2 {[%clk 0:03:02]}  O-O {[%clk 0:03:00]} 7. c4 {[%clk 0:03:00]}  d5 {[%clk 0:03:00]} 8. d3 {[%clk 0:02:51]}  c5 {[%clk 0:02:58]} 9. cxd5 {[%clk 0:02:51]}  exd5 {[%clk 0:02:58]} 10. d4 {[%clk 0:02:48]}  Nc6 {[%clk 0:02:53]} 11. Nc3 {[%clk 0:02:43]}  Rc8 {[%clk 0:02:47]} 12. Rc1 {[%clk 0:02:40]}  Ba6 {[%clk 0:02:48]} 13. dxc5 {[%clk 0:02:38]}  bxc5 {[%clk 0:02:48]} 14. Na4 {[%clk 0:02:38]}  c4 {[%clk 0:02:47]} 15. Ne5 {[%clk 0:02:08]}  Nb4 {[%clk 0:02:32]} 16. bxc4 {[%clk 0:01:57]}  dxc4 {[%clk 0:02:28]} 17. a3 {[%clk 0:01:45]}  Nbd5 {[%clk 0:01:48]} 18. Nc3 {[%clk 0:01:44]}  Nxc3 {[%clk 0:01:42]} 19. Rxc3 {[%clk 0:01:44]}  Qb6 {[%clk 0:01:35]} 20. Qc2 {[%clk 0:01:33]}  Rc5 {[%clk 0:01:13]} 21. Re3 {[%clk 0:00:58]}  Rfc8 {[%clk 0:00:45]} 22. Bd4 {[%clk 0:00:57]}  Qa5 {[%clk 0:00:37]} 23. Bxc5 {[%clk 0:00:51]}  Bxc5 {[%clk 0:00:38]} 24. Nc6 {[%clk 0:00:42]}  Rxc6 {[%clk 0:00:29]} 25. Bxc6 {[%clk 0:00:36]}  Bxe3 {[%clk 0:00:29]} 26. fxe3 {[%clk 0:00:37]}  Qc5 {[%clk 0:00:30]} 27. Qa4 {[%clk 0:00:27]}  Qxe3+ {[%clk 0:00:28]} 28. Kh1 {[%clk 0:00:18]}  Qxe2 {[%clk 0:00:24]} 29. Rc1 {[%clk 0:00:09]}  Ng4 {[%clk 0:00:16]} 30. Qc2 {[%clk 0:00:09]}  Qxc2 {[%clk 0:00:07]} 31. Rxc2 {[%clk 0:00:09]}  Kf8 {[%clk 0:00:07]} 32. Kg1 {[%clk 0:00:06]}  Ne5 {[%clk 0:00:05]} 33. Be4 {[%clk 0:00:03]}  g6 {[%clk 0:00:03]} 34. Kf2 {[%clk 0:00:04]}  Ke7 {[%clk 0:00:03]} 35. Ke3 {[%clk 0:00:05]}  Kd6 {[%clk 0:00:04]} 36. Kd4 {[%clk 0:00:05]}  Bc8 {[%clk 0:00:03]} 37. Rb2 {[%clk 0:00:03]}  f5 {[%clk 0:00:01]} 38. Bg2 {[%clk 0:00:01]}  h5 {[%clk 0:00:02]} 39. Rb8 {[%clk 0:00:01]}  Bd7 {[%clk 0:00:03]} 40. Rb1 {[%clk 0:00:01]}  g5 {[%clk 0:00:03]} 41. Rb7 {[%clk 0:00:02]}  f4 {[%clk 0:00:04]} 42. gxf4 {[%clk 0:00:03]}  gxf4 {[%clk 0:00:04]} 43. Rxa7 {[%clk 0:00:03]}  f3 {[%clk 0:00:05]} 44. Bf1 {[%clk 0:00:04]}  Nc6+ {[%clk 0:00:05]} 45. Kxc4 {[%clk 0:00:03]}  Nxa7 {[%clk 0:00:06]} 46. Kd3 {[%clk 0:00:04]}  Ke5 {[%clk 0:00:06]} 47. Ke3 {[%clk 0:00:04]}  Bb5 {[%clk 0:00:07]} 48. Bxb5 {[%clk 0:00:03]}  Nxb5 {[%clk 0:00:07]} 49. a4 {[%clk 0:00:04]}  Nd4 {[%clk 0:00:07]} 50. a5 {[%clk 0:00:00]}  Kd6 {[%clk 0:00:07]} 0-1


[Site "https://www.chess.com"]

[Event "Titled Tuesday Blitz July 4 Late 2023"]
[White "Ashraf, Artin"]
[Black "WindWhistler11"]
[WhiteFideId "22514805"]
[WhiteElo "2715"]
[BlackElo "2534"]
[Result "1-0"]
[Round "4"]
[TimeControl "180+2"]
[Date "2023.07.04"]
[WhiteClock "0:00:06"]
[BlackClock "0:00:12"]
[Board "44"]

1. Nf3 {[%clk 0:03:00]}  f5 {[%clk 0:02:58]} 2. g3 {[%clk 0:02:54]}  Nf6 {[%clk 0:02:56]} 3. Bg2 {[%clk 0:02:52]}  g6 {[%clk 0:02:56]} 4. O-O {[%clk 0:02:52]}  Bg7 {[%clk 0:02:56]} 5. d3 {[%clk 0:02:52]}  O-O {[%clk 0:02:57]} 6. e4 {[%clk 0:02:52]}  d6 {[%clk 0:02:53]} 7. exf5 {[%clk 0:02:38]}  Bxf5 {[%clk 0:02:47]} 8. d4 {[%clk 0:02:31]}  c6 {[%clk 0:02:26]} 9. Re1 {[%clk 0:02:28]}  Na6 {[%clk 0:02:25]} 10. c3 {[%clk 0:02:22]}  Qd7 {[%clk 0:02:23]} 11. Nbd2 {[%clk 0:02:19]}  Rae8 {[%clk 0:02:07]} 12. Ng5 {[%clk 0:02:11]}  e5 {[%clk 0:01:56]} 13. dxe5 {[%clk 0:02:06]}  Ng4 {[%clk 0:01:56]} 14. e6 {[%clk 0:01:14]}  Bxe6 {[%clk 0:01:51]} 15. Nxe6 {[%clk 0:01:02]}  Rxe6 {[%clk 0:01:25]} 16. Nf3 {[%clk 0:01:00]}  Nc5 {[%clk 0:01:09]} 17. Rxe6 {[%clk 0:00:58]}  Qxe6 {[%clk 0:01:10]} 18. h3 {[%clk 0:00:53]}  Nf6 {[%clk 0:00:49]} 19. Be3 {[%clk 0:00:49]}  Nce4 {[%clk 0:00:47]} 20. Nd4 {[%clk 0:00:38]}  Qe7 {[%clk 0:00:44]} 21. Qb3+ {[%clk 0:00:28]}  Kh8 {[%clk 0:00:43]} 22. Ne6 {[%clk 0:00:27]}  Re8 {[%clk 0:00:40]} 23. Nxg7 {[%clk 0:00:25]}  Kxg7 {[%clk 0:00:40]} 24. Re1 {[%clk 0:00:19]}  Qf7 {[%clk 0:00:33]} 25. Qxf7+ {[%clk 0:00:08]}  Kxf7 {[%clk 0:00:33]} 26. Bxa7 {[%clk 0:00:09]}  c5 {[%clk 0:00:30]} 27. Bb6 {[%clk 0:00:06]}  Nd2 {[%clk 0:00:20]} 28. Rxe8 {[%clk 0:00:05]}  Nxe8 {[%clk 0:00:20]} 29. Bxb7 {[%clk 0:00:04]}  Nc4 {[%clk 0:00:21]} 30. Bd5+ {[%clk 0:00:05]}  Ke7 {[%clk 0:00:18]} 31. Bxc4 {[%clk 0:00:05]}  Nf6 {[%clk 0:00:19]} 32. Bd3 {[%clk 0:00:03]}  Kd7 {[%clk 0:00:19]} 33. Ba5 {[%clk 0:00:04]}  Kc6 {[%clk 0:00:19]} 34. c4 {[%clk 0:00:04]}  Nd7 {[%clk 0:00:19]} 35. Be4+ {[%clk 0:00:04]}  d5 {[%clk 0:00:19]} 36. Bxd5+ {[%clk 0:00:05]}  Kd6 {[%clk 0:00:20]} 37. Bd2 {[%clk 0:00:05]}  Ne5 {[%clk 0:00:21]} 38. Bf4 {[%clk 0:00:06]}  g5 {[%clk 0:00:21]} 39. Bxg5 {[%clk 0:00:05]}  Ng6 {[%clk 0:00:21]} 40. h4 {[%clk 0:00:05]}  Kd7 {[%clk 0:00:22]} 41. h5 {[%clk 0:00:06]}  Ne5 {[%clk 0:00:23]} 42. Bf4 {[%clk 0:00:06]}  Nd3 {[%clk 0:00:24]} 43. b3 {[%clk 0:00:05]}  Nb4 {[%clk 0:00:24]} 44. a4 {[%clk 0:00:05]}  Na6 {[%clk 0:00:22]} 45. a5 {[%clk 0:00:05]}  Nb4 {[%clk 0:00:23]} 46. Bb7 {[%clk 0:00:05]}  Ke6 {[%clk 0:00:18]} 47. a6 {[%clk 0:00:06]}  Nxa6 {[%clk 0:00:17]} 48. Bxa6 {[%clk 0:00:06]}  Kf5 {[%clk 0:00:12]} 49. f3 {[%clk 0:00:06]} 1-0


[Site "https://www.chess.com"]